Cogmind - Beta 15 @@@ ROGUE MODE // 2025.05.18 @ 21:42:44 Player: Figgis Result: Self-destructed Performance ------------- Evolutions (2) 1000 Regions Visited (8) 1600 Robots Destroyed (93) 465 Value Destroyed (2639) 2639 Prototype IDs (26) 520 Alien Tech Used (0) 0 Bonus (370) 370 TOTAL SCORE: 6594 Bonus ------- Follower Combat Kills 70 Aligned with FarCom 300 Cogmind --------- Core Integrity 87/550 Matter 300/300 Energy 100/100 System Corruption 7% Temperature Cool (0) Movement Treading (250) Ox1 Location -8/Storage Parts ------- > --- POWER (1) -------- (None) > --- PROPULSION (3) --- Armored Treads > --- UTILITY (5) ------ Large Storage Unit Improved Terrain Scanner Advanced Terrain Scan Processor > --- WEAPON (2) ------- (None) > --- INVENTORY (15) --- Improved Ion Engine Light Nuclear Core Light Treads Light Treads VTOL Module VTOL Module VTOL Module Weight Redist. System Cloak of Protection Hacking Suite Heavy Laser Heavy Laser Heavy Laser Heavy Laser Improved Datajack Peak State ------------ > --- POWER ------------ Improved Ion Engine > --- PROPULSION ------- Light Treads Improved Treads Advanced Treads > --- UTILITY ---------- Large Storage Unit Improved Terrain Scanner Advanced Terrain Scan Processor Light Armor Plating Hardened Medium Armor Plating > --- WEAPON ----------- Heavy Laser Heavy Laser > --- INVENTORY -------- Improved Ion Engine Light Nuclear Core VTOL Module VTOL Module VTOL Module Advanced Heat Sink Weight Redist. System Cloak of Protection Hacking Suite Hacking Suite Heavy Laser Heavy Laser Improved Datajack Spear Spear [Rating: 33] Favorites ----------- Power Improved Ion Engine Engine Improved Ion Engine Power Core Light Nuclear Core Propulsion Light Treads Treads Light Treads Utility Large Storage Unit Device Structural Scanner Storage Large Storage Unit Processor Advanced Terrain Scan Processor Hackware Hacking Suite Protection Light Armor Plating Weapon Heavy Assault Rifle Energy Gun Heavy Laser Ballistic Gun Heavy Assault Rifle Piercing Weapon Spear Build | -11 -10 -10 -9 -9 -9 -8 -8 -8 ------- Run | Yrd Mat Min Mat Min Exi Min Mat Sto Slots Evolved 4 | . . . 2 . . . 2 . Power . | . . . . . . . . . Propulsion 1 | . . . 1 . . . . . Utility 3 | . . . 1 . . . 2 . Weapon . | . . . . . . . . . Parts Attached 52 | 7 4 4 6 5 . 2 19 5 Power 7 | 2 . 2 . 1 . . 1 1 Engine 6 | 2 . 1 . 1 . . 1 1 Core 1 | . . 1 . . . . . . Reactor . | . . . . . . . . . Propulsion 17 | 2 2 . 3 2 . 1 6 1 Treads 17 | 2 2 . 3 2 . 1 6 1 Leg . | . . . . . . . . . Wheel . | . . . . . . . . . Hover . | . . . . . . . . . Flight . | . . . . . . . . . Utility 15 | 1 2 . 1 2 . 1 6 2 Device 3 | . 1 . . . . . 2 . Storage 2 | 1 1 . . . . . . . Processor 1 | . . . . . . . 1 . Hackware 1 | . . . . . . . . 1 Protection 8 | . . . 1 2 . 1 3 1 Artifact . | . . . . . . . . . Weapon 13 | 2 . 2 2 . . . 6 1 Energy Gun 3 | . . 1 . . . . 2 . Energy Cannon . | . . . . . . . . . Ballistic Gun 8 | 2 . 1 2 . . . 2 1 Ballistic Cannon . | . . . . . . . . . Launcher . | . . . . . . . . . Special Weapon . | . . . . . . . . . Impact Weapon . | . . . . . . . . . Slashing Weapon . | . . . . . . . . . Piercing Weapon 2 | . . . . . . . 2 . Special Melee Weapon . | . . . . . . . . . Unidentified Prototypes 1 | . . . . . . . . 1 Parts Lost 24 | . 1 2 1 3 . 1 10 6 Power 4 | . 1 1 . 1 . . . 1 Propulsion 9 | . . . 1 1 . 1 5 1 Utility 5 | . . . . . . . 3 2 Weapon 6 | . . 1 . 1 . . 2 2 Highest Loss Streak 6 | . 1 2 1 3 . 1 3 6 To Critical Strikes . | . . . . . . . . . Average Backups 13 | 2 9 14 14 13 14 13 14 14 Power 1 | . . 2 2 1 2 2 2 2 Propulsion 2 | . 3 3 2 1 2 1 3 4 Utility 5 | . 2 7 6 6 6 7 4 3 Weapon 2 | 1 1 1 2 2 3 3 3 4 Tool/Special . | . . . . . . . . . Unused Backups 20 | . 1 2 1 1 1 . 3 11 Power 4 | . . 1 1 . . . . 2 Propulsion 4 | . . . . . . . . 4 Utility 4 | . 1 . . . . . 1 2 Weapon 7 | . . 1 . 1 1 . 2 2 Tool/Special 1 | . . . . . . . . 1 Average Slot Usage (%) 96 | . 98 99 98 97 100 100 90 88 Engine 8 | . 14 7 . 4 11 11 9 8 Core 2 | . . 5 11 5 . . . . Treads 29 | . 28 28 32 32 33 33 25 25 Device 11 | . 12 14 11 11 11 11 9 9 Storage 11 | . 14 14 11 11 11 11 9 9 Processor 2 | . . . . . . . 6 9 Protection 7 | . . . 9 10 11 11 12 5 Energy Gun 4 | . . 3 11 5 . . 7 . Ballistic Gun 15 | . 27 24 11 16 22 22 3 . Piercing Weapon 2 | . . . . . . . 6 17 Peak Build Rating 33 | 6 8 11 15 15 16 16 33 33 Average Rating 17 | 2 7 9 14 14 15 15 27 30 On Entrance 12 | . 6 8 11 15 15 16 16 29 Naked Turns . | . . . . . . . . . Heaviest Build 47 | 13 29 31 35 37 37 37 47 35 Greatest Support 65 | 40 40 40 60 60 60 60 65 62 Greatest Overweight (x) 1 | . . . . . . . 1 . Average Overweight (x) . | . . . . . . . . . Largest Inventory Capacity 15 | 8 15 15 15 15 15 15 15 15 Average Capacity 14 | 5 14 15 15 15 15 15 15 15 Most Carried 15 | 5 15 15 15 15 15 15 15 15 Average Carried 13 | 3 9 14 14 13 15 14 14 14 Final Capacity 15 | 8 15 15 15 15 15 15 15 15 Final Carried 15 | 2 13 15 14 15 15 14 15 15 Class Distribution -------------------- 74% | Mutant 12% | Assassin 9% | Skirmisher Dominant Class ---------------- Mutant | -10/Materials Mutant | -10/Mines Mutant | -9/Materials Mutant | -9/Mines Mutant | -9/Exiles Mutant | -8/Mines Assassin | -8/Materials Assassin | -8/Storage Resources | -11 -10 -10 -9 -9 -9 -8 -8 -8 ----------- Run | Yrd Mat Min Mat Min Exi Min Mat Sto Matter Collected 1826 | 270 250 238 216 103 . 256 433 60 Remotely . | . . . . . . . . . Salvage Created 3161 | . 363 450 739 155 . 337 907 210 Parts 211 | . 28 19 62 9 . 34 44 15 Haulers Intercepted 1 | . . . 1 . . . . . Recyclers Shooed 2 | . 1 . . . . . 1 . Parts Field Recycled . | . . . . . . . . . Retrieved Matter . | . . . . . . . . . Parts Self-Destructed . | . . . . . . . . . Prevented . | . . . . . . . . . Kills | -11 -10 -10 -9 -9 -9 -8 -8 -8 ------- Run | Yrd Mat Min Mat Min Exi Min Mat Sto Combat Hostiles Destroyed 81 | . 11 8 16 3 . 17 22 4 Melee 15 | . . . . . . . 11 4 Guns 66 | . 11 8 16 3 . 17 11 . Classes Destroyed 10 | . 4 2 3 . . . . 1 Worker 2 | . . . 2 . . . . . Builder 1 | . . 1 . . . . . . Hauler 1 | . . . 1 . . . . . Recycler 1 | . . 1 . . . . . . Operator 2 | . 1 . 1 . . . . . Watcher 5 | . 1 . 3 . . . 1 . Swarmer 30 | . 6 . 4 . . 14 6 . Grunt 35 | . 5 8 7 1 . 3 11 . Duelist 2 | . . . . . . . . 2 Sentry 14 | . . . 5 2 . . 5 2 Best Kill Streak 7 | . 6 3 7 1 . 7 4 2 Combat Bots Only 7 | . 6 2 3 1 . 7 4 2 Max Kills in Single Turn 2 | . 1 1 2 1 . 2 1 1 Gunslinging 1 | . . . . . . 1 . . Exploded . | . . . . . . . . . Melee 1 | . . . . . . . 1 1 Uniques/NPCs Destroyed . | . . . . . . . . . Combat | -11 -10 -10 -9 -9 -9 -8 -8 -8 -------- Run | Yrd Mat Min Mat Min Exi Min Mat Sto Hostile Shots Fired 479 | . 57 48 68 28 . 83 147 48 Missed 128 | . 18 14 23 6 . 25 31 11 Hits 351 | . 39 34 45 22 . 58 116 37 Melee 21 | . . . . . . . . 21 Projectile 330 | . 39 34 45 22 . 58 116 16 Critical Strikes 14 | . . . 1 2 . . 9 2 Damage Taken 4848 | . 441 473 567 328 . 616 1498 925 Core 822 | . 84 38 75 56 . 106 164 299 Absorbed by Shields . | . . . . . . . . . Regen/Repaired (Parts) 57 | . 57 . . . . . . . Core Remaining (%) 63 | 100 . 51 . . . 40 . . Volleys Fired 228 | . 53 32 48 16 . 31 48 . Largest 2 | . 2 2 2 2 . 2 2 . Hottest 138 | . 40 40 88 88 . 46 138 . Shots Fired 442 | . 107 66 96 28 . 62 83 . Gun 442 | . 107 66 96 28 . 62 83 . Cannon . | . . . . . . . . . Launcher . | . . . . . . . . . Special . | . . . . . . . . . Kinetic 360 | . 107 66 48 22 . 62 55 . Thermal 82 | . . . 48 6 . . 28 . Explosive . | . . . . . . . . . Electromagnetic . | . . . . . . . . . Robot Hit Streak 18 | . 8 12 18 10 . 6 14 . Robot Miss Streak 5 | . 5 3 5 3 . 3 5 . Penetration Max . | . . . . . . . . . Secondary Targets 7 | . 2 1 1 . . 3 . . Max Gunslinging Chain 1 | . 1 1 1 . . 1 . . Shots Hit Robots 342 | . 61 46 66 19 . 34 101 15 Core Hits 152 | . 24 23 32 6 . 21 38 8 Critical Kills 2 | . . 1 . 1 . . . . Critical Parts Destroyed . | . . . . . . . . . Critical Strikes 6 | . . 1 2 1 . . 1 1 Burn 3 | . . . 2 . . . 1 . Destroy 2 | . . 1 . 1 . . . . Impale 1 | . . . . . . . . 1 Melee Attacks 73 | . . . . . . . 53 20 Impact . | . . . . . . . . . Slashing . | . . . . . . . . . Piercing 73 | . . . . . . . 53 20 Sneak Attacks 2 | . . . . . . . 2 . Combat Hostiles 1 | . . . . . . . 1 . Follow-up Attacks 9 | . . . . . . . 8 1 Damage Inflicted 5491 | . 650 515 1050 284 . 537 2116 339 Guns 4100 | . 650 512 1050 284 . 534 1070 . Cannons . | . . . . . . . . . Explosions . | . . . . . . . . . Melee 1381 | . . . . . . . 1042 339 Ramming 10 | . . 3 . . . 3 4 . Kinetic 3108 | . 650 512 481 253 . 534 678 . Thermal 992 | . . . 569 31 . . 392 . Explosive . | . . . . . . . . . Electromagnetic . | . . . . . . . . . Impact . | . . . . . . . . . Slashing . | . . . . . . . . . Piercing 1381 | . . . . . . . 1042 339 Highest Corruption 7 | . 3 3 . . . . . 7 Average Corruption 2 | . 2 3 . . . . . 7 Corruption Purged . | . . . . . . . . . Corruption Blocked . | . . . . . . . . . Effects 32 | . 16 16 . . . . . . Message Errors 9 | . 5 4 . . . . . . Matter Fused 7 | . 4 3 . . . . . . Heat Flow Errors 4 | . 3 1 . . . . . . Energy Discharges 2 | . 1 1 . . . . . . Parts Rejected 1 | . . 1 . . . . . . Data Loss (minor) 5 | . 1 4 . . . . . . Misfires 3 | . 1 2 . . . . . . Alerts 1 | . 1 . . . . . . . Overload Shots . | . . . . . . . . . Overflow Damage 41 | . . . . . . . 41 . Projectiles . | . . . . . . . . . Explosions . | . . . . . . . . . Melee 41 | . . . . . . . 41 . Knockbacks . | . . . . . . . . . Impact . | . . . . . . . . . Kinetic . | . . . . . . . . . Secondary . | . . . . . . . . . Self-Inflicted Damage . | . . . . . . . . . Shots . | . . . . . . . . . Rammed 4 | . 1 1 . . . 1 1 . Targets Rammed 4 | . 1 1 . . . 1 1 . Kicked . | . . . . . . . . . Crushed . | . . . . . . . . . Highest Temperature 441 | . 252 226 325 226 . 119 441 . Average Temperature 82 | . 66 36 87 120 . 39 102 . Received Heat Transfer 1845 | . 195 264 216 135 . 180 765 90 Effects 1 | . . . . . . . 1 . Shutdowns 1 | . . . . . . . 1 . Siege Activations . | . . . . . . . . . Martial Activations . | . . . . . . . . . Shielding Activations . | . . . . . . . . . Robots Disrupted . | . . . . . . . . . Combat Hostiles . | . . . . . . . . . Robots Corrupted . | . . . . . . . . . Combat Hostiles . | . . . . . . . . . Parts Fried . | . . . . . . . . . Impact Corruptions . | . . . . . . . . . Robots Melted . | . . . . . . . . . Combat Hostiles . | . . . . . . . . . Parts Melted 4 | . . . 2 . . . 2 . Heat Transferred 2405 | . . . 1480 74 . . 851 . Parts Sabotaged . | . . . . . . . . . Parts Stolen . | . . . . . . . . . Parts Stripped . | . . . . . . . . . Power Chain Reactions . | . . . . . . . . . Alert | -11 -10 -10 -9 -9 -9 -8 -8 -8 ------- Run | Yrd Mat Min Mat Min Exi Min Mat Sto Maximum Alert Level . | . . . . . . . . . Low Security (%) 100 | 100 100 100 100 100 . 100 100 100 Level 1 . | . . . . . . . . . Level 2 . | . . . . . . . . . Level 3 . | . . . . . . . . . Level 4 . | . . . . . . . . . Level 5 . | . . . . . . . . . High Security . | . . . . . . . . . Max Security . | . . . . . . . . . Peak Influence 186 | . 137 50 176 61 . 154 186 100 Initial 69 | . . . . 61 . . 36 69 Average 41 | . 26 12 56 15 . 50 61 27 Influence Increases 2326 | . 302 250 486 70 . 405 611 202 Destroy 0b10 Robot/C 1660 | . 220 160 320 60 . 340 440 120 Destroy 0b10 Robot/NC 60 | . 10 10 35 . . . 5 . Destroy Leader 392 | . 42 50 98 10 . 50 102 40 Allied During Kill 26 | . . . . . . . . 26 Successful Hack 30 | . 30 . . . . . . . Disable Machine 15 | . . . . . . 15 . . Destroy Structure 8 | . . . 3 . . . 4 1 Partial Spotted 15 | . . . . . . . 15 . Lose Combat Pursuer 120 | . . 30 30 . . . 45 15 Influence Decreases 2311 | . 302 250 328 228 . 311 540 352 Entered New Map 251 | . . . . 97 . . 58 96 Time Decay 1832 | . 292 240 318 121 . 311 394 156 Lost Part 188 | . 10 10 10 10 . . 88 60 Lost Ally 40 | . . . . . . . . 40 Squads Dispatched 11 | . 1 . 3 1 . . 3 3 Investigation 4 | . . . 2 1 . . 1 . Extermination . | . . . . . . . . . Reinforcement 4 | . 1 . 1 . . . 2 . Assault 2 | . . . . . . . . 2 Garrison 1 | . . . . . . . . 1 Intercept . | . . . . . . . . . Searches Triggered . | . . . . . . . . . Construction Impeded . | . . . . . . . . . Haulers Reinforced . | . . . . . . . . . Active Scanning Responses . | . . . . . . . . . Cargo Convoy Interrupts . | . . . . . . . . . Stealth | -11 -10 -10 -9 -9 -9 -8 -8 -8 --------- Run | Yrd Mat Min Mat Min Exi Min Mat Sto Distress Signals 9 | . 4 . . . . . 3 2 Communications Jammed . | . . . . . . . . . Distress Signals . | . . . . . . . . . Times Spotted 122 | . 22 10 23 3 . 17 33 14 Peak Tracking Total 11 | . 4 2 4 2 . 6 6 11 Tactical Retreats 8 | . . 2 2 . . . 3 1 Traps | -11 -10 -10 -9 -9 -9 -8 -8 -8 ------- Run | Yrd Mat Min Mat Min Exi Min Mat Sto Traps Triggered 5 | . 2 . 1 . . . 2 . Indirectly . | . . . . . . . . . Trap Hack Attempts . | . . . . . . . . . Triggered . | . . . . . . . . . Disarmed . | . . . . . . . . . Reprogrammed . | . . . . . . . . . Reused . | . . . . . . . . . Traps Extracted . | . . . . . . . . . Installed . | . . . . . . . . . Triggered . | . . . . . . . . . Machines | -11 -10 -10 -9 -9 -9 -8 -8 -8 ---------- Run | Yrd Mat Min Mat Min Exi Min Mat Sto Machines Disabled 2 | . . . . 1 . 1 . . Max in Single Turn 1 | . . . . 1 . 1 . . Machines Repaired . | . . . . . . . . . Machines Dismantled . | . . . . . . . . . Machines Sabotaged . | . . . . . . . . . Overloaded Fab Kills . | . . . . . . . . . Hacking | -11 -10 -10 -9 -9 -9 -8 -8 -8 --------- Run | Yrd Mat Min Mat Min Exi Min Mat Sto Machines Accessed 25 | . 8 . 1 1 5 . 8 2 Terminals 15 | . 7 . 1 . . . 6 1 Fabricators . | . . . . . . . . . Repair Stations 1 | . 1 . . . . . . . Recycling Units 1 | . . . . . . . 1 . Scanalyzers 1 | . . . . . . . 1 . Garrison Access 1 | . . . . . . . . 1 Total Hacks 111 | . 28 . 3 1 50 . 23 6 Successful 71 | . 12 . 1 1 50 . 7 . Failed 40 | . 16 . 2 . . . 16 6 Catastrophic 7 | . . . 1 . . . 5 1 Database Lockouts . | . . . . . . . . . Manual 44 | . 20 . 3 . 1 . 16 4 Terminals 49 | . 26 . 3 . . . 16 4 Fabricators . | . . . . . . . . . Repair Stations 2 | . 2 . . . . . . . Recycling Units 1 | . . . . . . . 1 . Scanalyzers 6 | . . . . . . . 6 . Garrison Access 2 | . . . . . . . . 2 Terminal Hacks 59 | . 6 . 1 1 50 . 1 . Record 51 | . 2 . . . 49 . . . Prototype ID Bank 1 | . 1 . . . . . . . Open Door 1 | . . . . 1 . . . . Branch Access Points 3 | . 1 . 1 . . . 1 . Terminal Index 1 | . 1 . . . . . . . Registered Components 1 | . 1 . . . . . . . Proto ID Catalog 1 | . . . . . 1 . . . Fabricator Hacks . | . . . . . . . . . Repair Station Hacks 2 | . 2 . . . . . . . Scan Component 1 | . 1 . . . . . . . Repair 1 | . 1 . . . . . . . Recycling Unit Hacks 1 | . . . . . . . 1 . Report Inventory 1 | . . . . . . . 1 . Scanalyzer 5 | . . . . . . . 5 . Insert Component 2 | . . . . . . . 2 . Analyze 3 | . . . . . . . 3 . Garrison Access Hacks . | . . . . . . . . . Unauthorized Hacks 4 | . 4 . . . . . . . Terminals 4 | . 4 . . . . . . . Botnet 3 | . 3 . . . . . . . Operators 1 | . 1 . . . . . . . Fabricators . | . . . . . . . . . Repair Stations . | . . . . . . . . . Recycling Units . | . . . . . . . . . Scanalyzers . | . . . . . . . . . Garrison Access . | . . . . . . . . . Data Cores Recovered . | . . . . . . . . . Used . | . . . . . . . . . Hacking Detections 16 | . 8 . 1 . . . 5 2 Full Trace Events 2 | . 1 . 1 . . . . . Feedback Events . | . . . . . . . . . Feedback Blocked . | . . . . . . . . . Robot Schematics Acquired . | . . . . . . . . . Robots Built . | . . . . . . . . . Authchips . | . . . . . . . . . Time . | . . . . . . . . . Total Robot Build Rating . | . . . . . . . . . Part Schematics Acquired 2 | . . . . . . . 2 . Parts Built . | . . . . . . . . . Authchips . | . . . . . . . . . Time . | . . . . . . . . . Total Part Build Rating . | . . . . . . . . . Parts Repaired 1 | . 1 . . . . . . . Time 26 | . 26 . . . . . . . Parts Recycled . | . . . . . . . . . Recycled Matter . | . . . . . . . . . Retrieved Matter . | . . . . . . . . . Retrieved Components . | . . . . . . . . . Parts Scanalyzed 2 | . . . . . . . 2 . Part Schematics Acquired 2 | . . . . . . . 2 . Parts Damaged . | . . . . . . . . . Bothacking | -11 -10 -10 -9 -9 -9 -8 -8 -8 ------------ Run | Yrd Mat Min Mat Min Exi Min Mat Sto Used RIF Installer . | . . . . . . . . . Robots Hacked . | . . . . . . . . . Non-combat . | . . . . . . . . . Combat . | . . . . . . . . . Robot Hacks Applied . | . . . . . . . . . Relay Couplers Released . | . . . . . . . . . Fabnet Peak Effective % . | . . . . . . . . . Robots Rewired . | . . . . . . . . . Allies Hacked . | . . . . . . . . . Hacks Repelled . | . . . . . . . . . Allies | -11 -10 -10 -9 -9 -9 -8 -8 -8 -------- Run | Yrd Mat Min Mat Min Exi Min Mat Sto Total Allies 2 | . . . . . . . . 2 Largest Group 2 | . . . . . . . . 2 Highest-Rated Group 62 | . . . . . . . . 62 Highest-Rated Ally 31 | . . . . . . . . 31 Total Orders . | . . . . . . . . . Ally Attacks 33 | . . . . . . . . 33 Total Damage 466 | . . . . . . . . 466 Kills 2 | . . . . . . . . 2 Allies Corrupted . | . . . . . . . . . Allies Melted . | . . . . . . . . . Intel | -11 -10 -10 -9 -9 -9 -8 -8 -8 ------- Run | Yrd Mat Min Mat Min Exi Min Mat Sto Active Infowar (turns) 7997 | . 1318 1070 1031 377 568 1024 2156 453 Terrain 2041 | . . . . . . . 1588 453 Structural 5956 | . 1318 1070 1031 377 568 1024 568 . Robot Analysis Total . | . . . . . . . . . Derelict Logs Recovered 2 | . . 2 . . . . . . Drone Launches . | . . . . . . . . . Drone Recoveries . | . . . . . . . . . Exploration | -11 -10 -10 -9 -9 -9 -8 -8 -8 ------------- Run | Yrd Mat Min Mat Min Exi Min Mat Sto Turns Passed 8131 | 29 1422 1070 1031 377 568 1024 2157 453 Spaces Moved 4291 | 28 745 544 475 200 355 578 1131 235 Core 27 | 27 . . . . . . . . Treads 4264 | 1 745 544 475 200 355 578 1131 235 Legs . | . . . . . . . . . Wheels . | . . . . . . . . . Hover . | . . . . . . . . . Flight . | . . . . . . . . . Fastest Speed 50 | 50 160 160 160 160 160 160 152 158 Average Speed 158 | 53 160 160 160 160 160 160 156 158 Slowest Speed 240 | 160 160 160 160 160 160 160 240 158 Overloaded Moves . | . . . . . . . . . Propulsion Burnouts . | . . . . . . . . . Robots Hopped . | . . . . . . . . . Potential Cave-ins . | . . . . . . . . . Cave-ins Triggered . | . . . . . . . . . Exploration Rate (%) 59 | 3 92 97 43 41 71 98 62 28 Regions Visited 8 Branch Regions 5 Pre-discovered Areas 1 | . . . . . 1 . . . Known Exits Taken 3 | . 1 . 1 . . . 1 . Unknown Exits Taken 5 | 1 . 1 . 1 1 1 . . Scrap Searched 3 | . . 1 . 1 . 1 . . Spaces Dug 4 | . . . . . . . 3 1 Terrain Destroyed 4 | . . . . . . . 3 1 Melee 4 | . . . . . . . 3 1 Projectile . | . . . . . . . . . AOE . | . . . . . . . . . Terrain Rammed . | . . . . . . . . . Walls Destroyed . | . . . . . . . . . Machines Disabled . | . . . . . . . . . Actions | -11 -10 -10 -9 -9 -9 -8 -8 -8 --------- Run | Yrd Mat Min Mat Min Exi Min Mat Sto Total 5137 | 42 880 687 656 234 356 621 1372 289 Wait 398 | . 54 97 119 . . 8 97 23 Move 4283 | 27 744 543 474 199 354 577 1130 235 Hop . | . . . . . . . . . Pick Up 67 | 8 18 7 5 8 1 1 17 2 Fast Attach 9 | . . . . . . . 6 3 Attach 33 | 6 3 3 3 4 . 1 12 1 Detach 1 | . . . . . . . 1 . Swap 23 | 1 3 2 3 2 . 1 9 2 Drop 31 | . 4 2 4 5 1 1 9 5 Fire 228 | . 53 32 48 16 . 31 48 . Melee 60 | . . . . . . . 42 18 Ram . | . . . . . . . . . Kick . | . . . . . . . . . Crush 4 | . 1 1 . . . 1 1 . Escape Stasis . | . . . . . . . . . Rewire . | . . . . . . . . . Trap . | . . . . . . . . . Miscellaneous . | . . . . . . . . . Route ------- -11/Scrapyard -10/Materials (discovered 5 exits: *Mat x3 / *Min / [*Sub]) -10/Mines (discovered 3 exits: *Mat x2 / [Sub]) -9/Materials (discovered 3 exits: *Mat / *Min x2) -9/Mines (discovered 2 exits: *Mat / *Exi) -9/Exiles (discovered 2 exits: [*Min x2]) -8/Mines (discovered 2 exits: *Mat x2) -8/Materials (discovered 3 exits: [*Fac] / *Sto x2) -8/Storage History --------- Turn | Location | Event 13 | -11/Scrapyard | Discovered new exit (range 16) 30 | -11/Scrapyard | Entered Materials 161 | -10/Materials | Discovered new exit (range 5) 306 | -10/Materials | Build established: Mutant 565 | -10/Materials | Discovered new exit (range 8) 651 | -10/Materials | Discovered new exit (range 15) 669 | -10/Materials | Identified exit to Mines 891 | -10/Materials | Discovered new exit (range 16) 978 | -10/Materials | Repaired Assault Rifle 1197 | -10/Materials | Discovered new exit (range 12) 1452 | -10/Materials | Entered Mines 1470 | -10/Mines | Met a Derelict bent on vengeance 1477 | -10/Mines | Discovered new exit (range 7) 1500 | -10/Mines | Discovered new exit (range 16) 1648 | -10/Mines | Discovered new exit (range 10) 1970 | -10/Mines | Learned Materials stockpile data 2038 | -10/Mines | Learned 2 Materials zone layouts 2522 | -10/Mines | Entered Materials 2522 | -9/Materials | Evolved 2 slots: Propulsion x1, Utility x1 2523 | -9/Materials | Identified exit to Mines 3316 | -9/Materials | Discovered new exit (range 10) 3553 | -9/Materials | Entered Mines 3769 | -9/Mines | Lost 3 parts (1p1n1w) 3828 | -9/Mines | Discovered new exit (range 8) 3840 | -9/Mines | Met a Derelict shopkeep closing up shop 3924 | -9/Mines | Deemed a non-threat by the Exiles lab entrance 3924 | -9/Mines | Discovered new exit (range 5) 3930 | -9/Mines | Entered Exiles 3958 | -9/Exiles | Discovered new exit (range 15) 3975 | -9/Exiles | Met 8R-AWN 3999 | -9/Exiles | Met EX-HEX 4042 | -9/Exiles | Met EX-BIN 4068 | -9/Exiles | Aligned with FarCom system 4070 | -9/Exiles | Given EX-Vault access code 4154 | -9/Exiles | Opened EX-Vault 4166 | -9/Exiles | Found Cloak of Protection 4198 | -9/Exiles | Warned to stay clear of 0b10 Research branches 4244 | -9/Exiles | Met EX-DEC 4252 | -9/Exiles | Learned location of Zion (-6) 4484 | -9/Exiles | Discovered new exit (range 10) 4498 | -9/Exiles | Left Exiles lab with Cloak of Protection 4498 | -9/Exiles | Entered Mines 4515 | -8/Mines | Core integrity fell below 50% 4992 | -8/Mines | Discovered new exit (range 14) 5236 | -8/Mines | Discovered new exit (range 7) 5354 | -8/Mines | Destroyed 7 combat bots 5522 | -8/Mines | Entered Materials 5522 | -8/Materials | Evolved 2 slots: Utility x2 5943 | -8/Materials | Lost 3 parts (2n1w) 5988 | -8/Materials | Discovered new exit (range 10) 6383 | -8/Materials | Build established: Skirmisher 6672 | -8/Materials | Discovered new exit (range 5) 7174 | -8/Materials | Discovered new exit (range 8) 7192 | -8/Materials | Build established: Assassin 7343 | -8/Materials | Lost 3 parts (2n1u) 7513 | -8/Materials | Identified exit to Storage 7679 | -8/Materials | Entered Storage 7691 | -8/Storage | Met a pair of Derelict thieves 8101 | -8/Storage | Garrison activated, responded to threat 8124 | -8/Storage | Core integrity fell below 50% 8132 | -8/Storage | Core integrity fell below 20% 8132 | -8/Storage | Self-destructed Last Messages --------------- 08111_ Lgt. Armor Plating destroyed. 08112_ K-01 Serf collects debris. 08113_ Y-45 Defender suffers critical hit (Burn). 08114_ Spear follow-up attack on L-31 Rogue. 08114_ Spear destroyed. 08115_ EB-B58(g) Beamcaster severed. 08115_ K-01 Serf collects debris. 08115_ EB-B58(g) destroyed. 08116_ K-01 Serf cleans the Repair Station. 08116_ K-01 Serf collects debris. 08116_ Acquired Lgt. Treads. 08117_ YQ-AIM(g) destroyed. 08118_ K-01 Serf collects debris. 08119_ K-01 Serf cleans the Repair Station. 08120_ K-01 Serf collects debris. 08131_ Hacking Suite destroyed. 08131_ Spear destroyed. 08131_ System corrupted by crushing effect (+3). 08131_ System corrupted by crushing effect (+4). 08131_ K-01 Serf collects debris. Map ----- +----------------------------------------------------+ | ?????????????????????????????????????????????????? | | ?????????????????????????????????????????????????? | | ?????????????????????????????????????????????????? | | ?????????????????????????????????????????????????? | | ?????????????????????????????????????????????????? | | ?????????????????????????????????????????????????? | | ?????????????????????????????????????????????????? | | ?????????????????????????????????????????????????? | | ???????????????????????????## ?#????????????????? | | ?????????????????????###?#???? #????????????????? | | ??????????????????####?#?##?# ?##??????????????? | | ??????????????????########### #??###???????????? | | ?????##???#??#??####?######## ? #####????????????? | | ???????????????#####?#######? #######??????????? | | ????#?????##??###################? ??????????? | | ?? ????? ???? ? #############? ? ?##????????? | | ? ? ???? ? ? #############?# ? #?????????? | | #?????????? ? ############## ##+#??????? | | ????????"?""? """ ########?###### ??Y#??#???? | | #???# ""???"" """ ############### ## ##?????# | | ????# ?"? """ """ #################+##### ##??###? | | # #?############## """########## ### ?#???#? | | # ######?##"""####""R"### % Y ###??## | | ? ########"Y"####"" "### ###### ### + " ?## | | ?? ? Y [ mlY####### #?### ##T?#### | | !%[ u !@w/## # ##### ######## | | ? != k[lb%## # ##### #####?## | | ? ? #####+######## *[kk# # #####+#######? | | ?#?### ##""" !=## # ##### """ """? | | ?#?### """"" ##"G !##%"" # + """ """ | | ?##### """"" ##""" ## "T #######C""" """ | | ##??## """"" ##### ## "" ####### | | #?#### ##### ## ####### ? | | #?#### """"" + a#####+####### | | ?#?### """"" ##### i% + | | #??### """"" ##### ######## ####### | | ##??## ##### ######## #############+## | | #??####################+######### ########### | | ?##?######?######### ##### ########### | | ??######?#########?# """ ##### ########### " | | ??####?############# """ ##### ########### | | ?##??############### """ ##### ########### | | #?#???############## ##### #############+## | | #?###?#?#######?#### """ ##### + | | ???#???#?######?#### """ ############# | | ????#??###???####### """ ############# """ """ | | ?????######?##??#### ############# """ """ | | ?#?##??#?###?##???####################?## """ """ | | ???####??#?#??####?###?################## | | ???#??#??????#???#?##????######################### | +----------------------------------------------------+ Best States ------------- Heat Dissipation 31 Energy Generation 14 Energy Capacity 265 Matter Stores 300 Matter Capacity 300 Sight Range 16 Terrain Scan Range 16 Terrain Scan Density 210 Armor Coverage 375 Evasion (%) 50 Recoil Reduction 3 Offensive Hacking 10 Item Schematics ----------------- Hacking Suite | -8/Materials | Scanalyzed VTOL Module | -8/Materials | Scanalyzed Robot Schematics ------------------ None Fabricated ------------ Nothing Repaired ---------- Assault Rifle | 43% | -10/Materials Alien Tech Used ----------------- None Achievements -------------- None Challenges ------------ None Game ------ Seed PowerShiftScrap Manual? 0 Play Time 00:43:27 Cumulative 128.4 hours Start 2025.05.18 @ 20:54:52 End 2025.05.18 @ 21:42:44 Sessions 3 Manual Loads 0 Difficulty Rogue Special Mode None Game No. 194 Rogue 191 Adventurer 3 Explorer 0 Win Type - Total 0 Types 0/0/0/0/0/0/0/0/0/0 Lore% 29 Gallery% 52 Achievement% 42 Wizard Run 0 Options --------- Layout 0 ASCII 0 Keyboard 0 Movement Mouse Keybinds 0 Fullscreen 2 Font 18/SmallcapsGlow Map View 76x50 Zoom Use 0% Tactical HUD 1 Map Filters NONE Filters NONE Steam 1 RUN: 32fbb7f4-ff10-4b75-a353-360f9f304fd2